bitfinex/quotes_ETHUSD_20260120
["timestamp","ask_amount","ask_price","bid_price","bid_amount"]
[1768886124719,0.95170213,3152.7,3151.4,0.97798243]
[1768886125035,0.502,3152.7,3151.6,0.97798243]
[1768886125441,0.95170213,3152.6,3151.3,0.97798243]
[1768886125612,0.95170213,3152.6,3151.0,0.00598132]
[1768886125613,0.95170213,3153.2,3151.5,0.97798243]
[1768886125947,0.95170213,3153.0,3152.1,0.002]
[1768886126238,0.95270213,3153.4,3152.1,0.97998243]
[1768886126446,1.45470213,3153.4,3152.1,0.97998243]
[1768886126810,0.001,3153.4,3152.3,0.97798243]
[1768886127126,3.16996983,3154.7,3152.2,0.494]
[1768886127127,0.95170213,3154.7,3152.5,0.97798243]
[1768886127328,0.95170213,3155.0,3152.7,0.97798243]
[1768886127514,3.16844681,3156.2,3152.7,0.97798243]
[1768886127515,0.95170213,3155.4,3152.7,0.97798243]
[1768886127715,0.95170213,3155.8,3152.9,0.97798243]
[1768886127916,0.95170213,3156.2,3153.1,1.10598243]
[1768886128106,3.16836497,3156.3,3153.6,0.97798243]
[1768886128329,2.29159912,3156.6,3154.0,0.97798243]
[1768886128330,0.3168365,3156.2,3154.0,0.97798243]
[1768886128529,0.95170213,3156.9,3154.2,0.97798243]
[1768886128721,0.95170213,3156.8,3154.2,0.97798243]
[1768886128923,0.95170213,3156.8,3154.3,1.47198243]
[1768886129126,0.95170213,3156.5,3154.4,3.66417499]
[1768886129320,0.95170213,3156.3,3154.4,4.64215742]
[1768886129526,0.95170213,3156.3,3154.4,0.97798243]
[1768886129726,0.95170213,3156.3,3154.0,0.97798243]
[1768886129727,0.95170213,3156.2,3154.0,0.97798243]
[1768886129924,0.95170213,3156.0,3154.0,0.97798243]
[1768886130249,0.6459061,3156.1,3153.3,0.97798243]
[1768886130250,0.95170213,3155.6,3153.3,0.97798243]
[1768886130446,0.95170213,3155.4,3153.3,4.14925598]
[1768886130744,0.95170213,3155.4,3153.3,0.97798243]
[1768886130942,0.501,3155.3,3153.7,0.97798243]
[1768886131148,3.67036132,3155.3,3153.8,3.170706]
[1768886131351,0.77912422,3155.2,3153.7,0.97798243]
[1768886131650,0.77912422,3155.2,3153.3,0.97798243]
[1768886131815,0.77912422,3155.2,3153.5,3.17100696]
[1768886132128,0.77912422,3155.2,3153.7,3.17087432]
[1768886132328,0.77912422,3155.2,3153.6,3.17096857]
[1768886132529,0.77912422,3155.2,3153.8,0.97798243]
[1768886133127,3.94851034,3155.2,3153.8,4.14872356]
[1768886133436,3.16938612,3155.2,3153.8,4.14872356]
[1768886133638,0.501,3155.6,3153.9,0.97798243]
[1768886133861,3.67000004,3155.6,3153.9,0.97798243]
[1768886134143,0.501,3155.6,3153.9,0.97798243]
[1768886134443,3.16849857,3156.1,3154.1,0.97798243]
[1768886134645,0.95170213,3156.2,3154.0,1.04902798]
[1768886134646,0.95170213,3156.2,3154.3,0.97798243]
[1768886135223,0.95170213,3156.2,3154.5,0.97798243]
[1768886135428,4.12007168,3156.2,3154.5,0.97798243]
[1768886135732,0.41200717,3156.1,3154.6,0.41481574]
[1768886135934,0.41200717,3156.1,3154.1,0.97798243]
[1768886135935,0.95170213,3156.0,3154.1,0.97798243]
[1768886136143,0.95170213,3156.0,3153.7,0.494]
[1768886136446,0.501,3155.9,3154.2,0.97798243]
[1768886136649,0.95170213,3155.8,3153.6,0.97798243]
[1768886136816,0.95170213,3155.8,3153.7,1.47098243]
[1768886137348,0.95170213,3155.6,3153.8,0.46418927]
[1768886137519,0.95170213,3155.6,3153.7,1.47098243]
[1768886138065,3.16857525,3156.0,3153.9,0.97798243]
[1768886138359,3.58050169,3156.1,3153.9,0.97798243]
[1768886138555,6.33676826,3156.2,3154.1,0.97798243]
[1768886138728,0.001,3155.3,3154.1,0.97798243]
[1768886138936,0.001,3155.3,3154.2,0.97798243]
[1768886139433,0.001,3155.3,3154.4,0.97798243]
[1768886139634,0.001,3155.3,3154.5,0.41482579]
[1768886140642,0.001,3155.3,3154.6,0.97798243]
[1768886140956,4.1201801,3156.1,3154.6,0.97798243]
[1768886141873,0.95170213,3156.0,3154.6,0.97798243]
[1768886142924,0.95170213,3156.0,3154.4,0.493]
[1768886143244,1.72714339,3155.9,3154.4,3.66317125]
[1768886143431,1.72714339,3155.9,3154.5,4.07086867]
[1768886143632,1.72714339,3155.9,3154.5,0.90082285]
[1768886143892,1.72714339,3155.9,3154.5,4.07088714]
[1768886144168,1.72714339,3155.9,3154.6,0.45638871]
[1768886145269,4.8958173,3155.9,3154.6,0.45638871]
[1768886145565,0.501,3156.2,3154.9,0.90082285]
[1768886146128,3.66938212,3156.2,3154.9,0.90082285]
[1768886146327,0.501,3156.2,3154.9,0.90082285]
[1768886146571,0.99827758,3156.6,3154.9,0.90082285]
[1768886147669,1.49927758,3156.8,3155.1,0.90082285]
[1768886147871,0.46669845,3156.7,3155.3,0.90082285]
[1768886148235,1.49927758,3156.8,3155.3,0.90082285]
[1768886148426,1.49927758,3156.8,3155.4,1.39382285]
[1768886148739,1.49927758,3156.8,3155.5,0.90082285]
[1768886148942,0.501,3156.8,3155.5,0.90082285]
[1768886149464,0.001,3157.0,3155.5,0.90082285]
[1768886149761,0.99927758,3157.0,3155.7,0.90082285]
[1768886150059,0.99927758,3157.0,3155.8,0.493]
[1768886150365,0.001,3157.0,3155.9,0.90082285]
[1768886150660,0.001,3157.0,3155.9,1.39382285]
[1768886150854,0.001,3156.5,3155.9,1.39382285]
[1768886151452,0.001,3156.5,3156.0,0.90082285]
[1768886151769,0.001,3157.0,3156.1,0.90082285]
[1768886152071,0.001,3157.3,3156.3,0.90082285]
[1768886153151,0.001,3157.3,3156.5,0.9966091]
[1768886153640,0.001,3157.6,3156.6,3.16796553]
[1768886153993,0.001,3157.6,3156.7,0.9966091]
[1768886154137,0.001,3157.6,3156.9,0.9966091]
[1768886154333,0.001,3157.6,3157.0,0.493]
[1768886154749,0.501,3158.8,3157.1,0.9966091]
[1768886154750,0.95013204,3158.7,3157.1,0.9966091]
[1768886154948,4.11606403,3158.7,3157.1,0.9966091]
[1768886155236,0.95113204,3158.2,3157.2,0.493]
[1768886155492,1.36187305,3158.1,3157.2,0.493]
[1768886155766,0.95013204,3158.1,3157.0,3.16750422]
[1768886155964,0.95013204,3158.1,3157.1,0.493]
[1768886156170,0.95013204,3158.1,3157.0,3.16750422]
[1768886156171,0.95013204,3158.1,3156.7,0.9966091]
[1768886156368,0.001,3158.2,3157.2,0.493]
[1768886156744,0.95113204,3158.2,3157.3,0.493]
[1768886158666,0.95113204,3158.2,3156.7,0.9966091]
[1768886158856,0.95013204,3158.1,3156.8,1.4896091]
[1768886159179,0.95013204,3158.1,3157.0,3.16749815]
[1768886159359,0.95013204,3158.1,3157.1,0.31674982]
[1768886159874,0.001,3158.2,3157.1,0.31674982]
[1768886160386,0.001,3158.2,3157.2,0.9966091]
[1768886160681,0.001,3158.2,3157.1,0.31674982]
[1768886160886,0.001,3158.2,3155.7,5.50735887]
[1768886160887,0.95013204,3158.1,3156.6,3.16795837]
[1768886161077,0.95013204,3158.1,3156.8,3.16769006]
[1768886161446,0.95013204,3158.1,3156.7,0.493]
[1768886161979,0.95013204,3158.0,3156.7,3.66085501]
[1768886162179,0.4116618,3157.9,3156.8,0.3660855]
[1768886162399,0.95013204,3157.8,3156.2,0.9966091]
[1768886162756,0.95013204,3157.8,3156.3,0.493]
[1768886163167,0.95013204,3157.8,3156.3,4.6578412]
[1768886163368,0.95013204,3157.8,3156.3,1.4896091]
[1768886163564,0.95013204,3157.8,3156.6,0.002]
[1768886163769,0.95013204,3157.6,3156.6,0.002]
[1768886163991,0.95013204,3157.4,3156.6,0.002]
[1768886165784,0.95013204,3157.7,3156.6,0.002]
[1768886166091,0.95013204,3157.6,3156.6,0.002]
[1768886166388,0.95013204,3157.6,3156.3,0.002]
[1768886166688,1.67852057,3157.6,3156.4,0.9966091]
[1768886166888,0.95113204,3157.9,3156.6,0.9966091]
[1768886168081,0.95113204,3157.9,3156.7,0.9966091]
[1768886169992,0.001,3157.9,3156.9,0.9966091]
[1768886170197,0.001,3157.9,3157.0,0.73321387]
[1768886170493,0.001,3157.9,3157.1,0.9966091]
[1768886170694,0.001,3157.9,3157.2,1.4896091]
[1768886171303,0.001,3157.9,3157.3,0.9966091]
[1768886171657,0.001,3157.9,3157.4,0.493]
[1768886171862,0.001,3158.2,3157.5,0.9966091]
[1768886172079,0.001,3158.2,3157.4,0.493]
[1768886172291,0.001,3158.2,3157.5,0.9966091]
[1768886172480,0.001,3158.2,3157.6,0.9966091]
[1768886172660,0.001,3158.2,3157.7,0.41636675]
[1768886172990,0.001,3158.2,3157.4,0.493]
[1768886173189,0.001,3158.2,3157.5,4.1636702]
[1768886173368,0.001,3158.2,3157.6,0.9966091]
[1768886174664,0.001,3158.2,3157.3,0.9966091]
[1768886174864,0.001,3158.2,3157.4,0.493]
[1768886175392,0.001,3158.2,3157.5,3.63273842]
[1768886175797,0.001,3158.2,3157.5,4.62934752]
[1768886175996,0.001,3158.2,3157.6,3.16695622]
[1768886176164,0.001,3158.2,3157.6,4.16356532]
[1768886176365,0.001,3158.2,3157.7,0.9966091]
[1768886176576,0.001,3158.2,3157.8,0.51601744]
[1768886176780,4.11584825,3158.9,3157.8,0.51601744]
[1768886176978,0.95013204,3158.9,3157.8,0.51601744]
[1768886177397,0.3362008,3160.2,3157.8,0.51601744]
[1768886177398,0.95013204,3159.2,3157.9,0.9966091]
[1768886177595,0.95013204,3159.2,3158.1,0.9966091]
[1768886177801,0.95013204,3159.6,3158.1,0.9966091]
[1768886178189,0.95013204,3159.6,3158.3,3.16626032]
[1768886178499,0.95013204,3159.5,3158.3,3.16626032]
[1768886179031,0.95013204,3159.5,3158.4,0.9966091]
[1768886179200,6.32891364,3160.1,3158.4,0.9966091]
[1768886179201,0.95013204,3160.0,3158.4,0.9966091]
[1768886179410,0.41145889,3159.9,3158.6,0.9966091]
[1768886179569,0.95013204,3160.0,3158.6,0.9966091]
[1768886180376,0.95013204,3160.4,3158.8,0.9966091]
[1768886180569,0.95013204,3160.4,3159.0,0.9966091]
[1768886181482,6.32751202,3160.8,3159.0,0.9966091]
[1768886181684,0.95013204,3160.7,3159.0,0.9966091]
[1768886181885,6.32751202,3160.8,3158.7,6.33171874]
[1768886181886,0.95013204,3160.5,3158.7,0.9966091]
[1768886182097,0.95013204,3160.5,3157.5,3.16700413]
[1768886182098,0.95013204,3160.5,3158.8,0.493]
[1768886182286,0.95013204,3160.3,3158.9,0.493]
[1768886183028,0.95013204,3160.3,3158.4,0.92198902]
[1768886183186,0.95013204,3160.3,3158.5,0.493]
[1768886183388,0.99086593,3160.1,3158.5,0.493]
[1768886183994,0.99086593,3160.1,3158.2,0.92198902]
[1768886184337,9.4939713,3159.9,3158.3,0.493]
[1768886184499,0.99086593,3159.8,3158.3,0.492]
[1768886184825,0.99086593,3159.6,3158.3,0.492]
[1768886185596,0.99086593,3159.6,3158.4,0.92198902]
[1768886185799,1.04848372,3159.7,3158.4,0.92198902]
[1768886185997,2.03934965,3159.7,3158.4,0.92198902]
[1768886186312,0.99086593,3159.7,3158.4,1.38001068]
[1768886186541,0.99086593,3159.6,3158.5,0.492]
[1768886186824,0.99086593,3159.6,3158.6,0.492]
[1768886187586,0.99086593,3159.9,3158.6,1.41398902]
[1768886188131,4.15556074,3159.9,3158.7,0.92198902]
[1768886188424,3.66420612,3160.4,3158.4,0.92198902]
[1768886188425,3.16485742,3159.7,3158.4,0.92198902]
[1768886188629,0.99086593,3159.6,3158.5,0.492]
[1768886188834,1.40643827,3159.5,3158.5,0.492]
[1768886189115,0.99086593,3159.4,3158.0,3.16649914]
[1768886189317,0.99086593,3159.4,3158.5,0.492]
[1768886189999,7.32045411,3159.8,3158.5,1.41398902]
[1768886190313,0.99086593,3159.6,3158.6,0.492]
[1768886190705,0.99086593,3159.5,3158.6,0.492]
[1768886192004,3.16466423,3159.9,3158.6,1.41398902]
[1768886192005,4.15553181,3159.9,3158.6,1.41398902]
[1768886192210,0.99086593,3159.8,3158.6,1.41398902]
[1768886192410,1.40641911,3159.7,3158.7,0.492]
[1768886192828,4.57128284,3159.7,3158.7,0.492]
[1768886193130,4.57128284,3159.7,3158.4,3.16615748]
[1768886193131,0.99086593,3159.6,3158.4,0.492]
[1768886193832,0.99086593,3159.6,3158.5,0.92198902]
[1768886193996,0.99086593,3159.6,3158.6,0.92198902]
[1768886194196,1.40643936,3159.6,3158.7,0.492]
[1768886195239,0.99186593,3160.0,3158.8,0.92198902]
[1768886195593,0.99086593,3159.9,3158.8,0.92198902]
[1768886197032,0.99086593,3159.8,3158.7,0.492]
[1768886197842,0.99086593,3159.8,3158.7,1.41398902]
[1768886198003,0.41556013,3159.7,3158.7,1.41398902]
[1768886198738,0.99086593,3159.8,3158.7,1.41398902]
[1768886199136,0.99086593,3159.8,3158.8,0.92198902]
[1768886199505,0.99086593,3159.8,3158.7,0.492]
[1768886199713,0.99086593,3159.8,3158.5,0.004]
[1768886199714,0.99086593,3159.7,3158.5,0.004]
[1768886200036,0.99086593,3159.5,3158.5,0.004]
[1768886200341,0.99186593,3159.5,3158.5,0.004]
[1768886200703,0.99186593,3159.5,3155.5,3.95659209]
[1768886200704,0.99186593,3159.5,3157.5,0.92198902]
[1768886200904,0.99086593,3158.6,3157.5,0.92198902]
[1768886201104,1.40653846,3158.6,3157.6,0.492]
[1768886201913,0.99086593,3158.5,3157.6,0.492]
[1768886202513,0.41567253,3158.6,3157.5,0.97821852]
[1768886202735,1.3169534,3158.6,3157.6,0.492]
[1768886202937,3.1664618,3158.9,3157.7,0.97821852]
[1768886202938,0.0008,3158.9,3157.7,0.97821852]
[1768886203137,0.90208087,3158.9,3157.7,0.97821852]
[1768886203341,0.90128087,3158.8,3157.0,3.16749335]
[1768886203551,0.90128087,3158.8,3157.1,0.492]
[1768886203718,0.90128087,3158.8,3157.2,3.16729155]
[1768886203910,0.90128087,3158.8,3157.2,4.14551007]
[1768886204236,0.90128087,3158.8,3157.2,0.97821852]
[1768886204453,0.90128087,3158.8,3157.2,4.14557597]
[1768886204740,0.90128087,3158.8,3157.3,3.16723211]
[1768886205044,0.90128087,3158.6,3157.3,3.67735589]
[1768886205220,0.90128087,3158.6,3157.4,0.97821852]
[1768886205424,0.90208087,3158.9,3157.4,0.97821852]
[1768886206020,0.90128087,3158.8,3157.5,0.492]
[1768886206223,0.40677921,3158.7,3157.6,0.97821852]
[1768886206555,1.30806008,3158.7,3157.7,0.492]
[1768886206756,0.0008,3158.9,3157.8,0.97821852]
[1768886207248,0.0008,3158.9,3157.9,0.492]
[1768886207648,0.0008,3158.9,3157.9,1.47021852]
[1768886207946,0.0008,3158.9,3158.0,0.46369427]
[1768886208554,0.0008,3158.9,3158.1,0.97821852]
[1768886208864,0.0008,3158.9,3158.0,0.46369427]
[1768886209552,0.0008,3158.9,3158.0,3.63023904]
[1768886209753,0.0008,3158.9,3158.1,0.97821852]
[1768886209955,0.0008,3158.9,3158.2,0.46084576]
[1768886211055,0.0008,3158.9,3158.2,1.43906428]
[1768886211520,0.0008,3158.9,3158.3,0.492]
[1768886212148,0.0008,3158.9,3158.4,0.97821852]
[1768886213247,0.0008,3158.9,3158.3,0.492]
[1768886213248,0.0008,3159.2,3158.6,0.91538967]
[1768886213455,0.0008,3159.2,3158.8,0.91538967]
[1768886213622,0.0008,3159.2,3158.9,0.9001249]
[1768886214039,0.0018,3159.5,3158.9,0.9001249]
[1768886214763,0.0008,3159.8,3159.0,0.91538967]
[1768886214930,0.0008,3159.8,3159.2,0.91538967]
[1768886215657,0.0008,3159.8,3159.3,0.492]
[1768886216434,0.0008,3159.8,3159.4,0.492]
[1768886217782,0.90592113,3160.9,3159.6,0.91538967]
[1768886217930,0.90592113,3160.8,3159.7,0.91618975]
[1768886218361,3.16287342,3161.7,3159.7,0.91618975]
[1768886218362,0.90592113,3161.7,3159.7,0.91618975]
[1768886218537,0.90592113,3161.5,3159.7,0.91618975]
[1768886219557,4.06907105,3161.5,3159.9,0.91538967]
[1768886219829,0.90592113,3161.4,3160.0,0.91538967]
[1768886220054,0.90592113,3161.4,3160.1,0.492]
[1768886220258,0.90592113,3161.4,3159.7,0.00080008]
[1768886220259,0.90592113,3161.3,3159.7,0.00080008]
[1768886220463,0.90592113,3161.1,3159.7,0.00080008]
[1768886221859,0.90592113,3160.9,3159.7,0.00080008]
[1768886222070,9.49066749,3161.0,3159.4,0.00080008]
[1768886222071,0.90592113,3160.7,3159.4,0.00080008]
[1768886222363,0.90672121,3160.1,3159.4,0.00080008]
[1768886223734,3.16455696,3160.0,3159.4,0.00080008]
[1768886223942,0.90592113,3159.9,3159.4,0.00080008]
[1768886226877,0.00080008,3160.1,3159.4,0.00080008]
[1768886227366,0.90592113,3160.0,3159.1,0.00080008]
[1768886227576,0.90592113,3159.4,3158.8,0.00080008]
[1768886228482,0.00080008,3159.5,3158.8,0.00080008]
[1768886228645,0.90592113,3159.4,3158.8,0.00080008]
[1768886228976,0.90672121,3159.2,3158.5,0.00080008]
[1768886229379,0.90592113,3158.8,3157.6,0.91538967]
[1768886229759,0.90592113,3158.8,3157.7,0.91538967]
[1768886229958,0.90592113,3158.8,3157.7,4.08224532]
[1768886230182,0.90592113,3158.8,3157.8,3.16675794]
[1768886230481,0.90592113,3158.8,3157.7,1.3728142]
[1768886230482,0.00080008,3158.9,3157.9,4.08204438]
[1768886230670,0.00080008,3158.9,3157.9,0.91538967]
[1768886230868,0.90672121,3158.9,3157.7,0.45742453]
[1768886231069,0.90672121,3158.9,3157.6,1.40738967]
[1768886231284,0.90672121,3158.9,3157.0,0.91538967]
[1768886231607,0.90592113,3158.7,3157.1,1.40738967]
[1768886231773,0.90592113,3158.7,3157.2,0.492]
[1768886232284,0.90592113,3158.7,3157.1,3.16738711]
[1768886232468,6.3319192,3158.6,3157.1,0.68270138]
[1768886232660,0.90592113,3158.5,3157.1,0.68270138]
[1768886232982,0.90592113,3158.5,3157.0,4.0829434]
[1768886233276,0.90592113,3158.5,3157.0,0.91538967]
[1768886233578,0.90592113,3158.5,3157.0,4.08292592]
[1768886233778,0.90592113,3158.5,3157.0,0.91538967]
[1768886233965,0.90592113,3158.5,3157.1,0.91538967]
[1768886234171,0.90592113,3158.3,3157.1,1.37288495]
[1768886234579,3.16636058,3158.2,3157.1,0.91538967]
[1768886234780,0.90592113,3158.1,3157.1,0.91538967]
[1768886235390,0.90592113,3158.1,3157.1,4.08279418]
[1768886235592,0.90592113,3158.1,3157.4,0.002]
[1768886235802,0.72378403,3158.4,3157.4,0.002]
[1768886236104,0.47957894,3158.3,3157.4,0.91738967]
[1768886236669,0.00080008,3158.9,3157.5,0.91538967]
[1768886236901,0.00080008,3158.9,3157.7,0.91538967]
[1768886238290,0.001,3159.1,3157.7,0.91538967]
[1768886238491,0.001,3159.1,3158.5,0.00080016]
[1768886239207,0.90692113,3159.1,3158.5,0.00080016]
[1768886240830,4.07244026,3159.1,3158.5,0.00080016]
[1768886240979,0.40732403,3159.0,3158.5,0.00080016]
[1768886241177,1.31324516,3159.0,3158.5,0.00080016]
[1768886243010,0.40732403,3159.0,3158.5,0.00080016]
[1768886243307,0.001,3159.1,3158.5,0.00080016]
[1768886246910,0.001,3159.1,3158.5,0.97356821]
[1768886247119,0.96672519,3159.1,3158.5,0.00080016]
[1768886249177,0.96672519,3159.1,3158.8,0.002]
[1768886249512,0.96572519,3159.0,3158.8,0.002]
[1768886249713,0.19324504,3158.9,3158.5,0.00280016]
[1768886250510,0.001,3159.1,3158.5,0.00280016]
[1768886251417,0.96352527,3159.3,3158.5,0.00280016]
[1768886251626,0.5,3159.4,3158.8,0.00080016]
[1768886252317,0.00080008,3159.5,3158.8,0.97356821]
[1768886252706,0.00080008,3159.5,3158.9,1.38670891]
[1768886252906,0.00080008,3159.5,3158.9,0.97276805]
[1768886253106,0.00080008,3159.5,3158.8,0.00080016]
[1768886253314,0.00080008,3159.8,3159.0,0.97276805]
[1768886253492,0.00080008,3159.8,3159.2,0.97276805]
[1768886253695,0.00080008,3160.1,3159.5,0.97276805]
[1768886254523,0.96652527,3160.1,3159.4,0.00080016]
[1768886255585,0.00080008,3160.1,3159.5,0.97276805]
[1768886256019,0.00080008,3160.1,3159.6,0.97276805]
[1768886256332,0.00080008,3160.1,3159.7,4.13762547]
[1768886256488,0.0008,3160.4,3159.8,0.73025691]
[1768886256689,0.0008,3160.7,3160.0,0.97356813]
[1768886257739,0.0008,3161.0,3160.3,0.97276805]
[1768886257928,0.0008,3161.0,3160.4,0.492]
[1768886258092,0.0008,3161.0,3160.5,0.97276805]
[1768886258928,0.0008,3161.3,3160.6,0.49280008]
[1768886259117,0.0008,3161.3,3160.7,0.36568564]
[1768886259835,0.0008,3161.3,3160.7,1.33845369]
[1768886259995,0.0008,3161.3,3160.7,0.36568564]
[1768886260197,4.12979999,3161.3,3160.6,0.00080008]
[1768886260426,0.96572519,3161.2,3160.6,0.00080008]
[1768886261016,0.0008,3161.3,3160.6,0.00080008]
[1768886261220,3.16407817,3161.3,3160.7,0.002]
[1768886261419,0.31640782,3161.2,3160.7,0.002]
[1768886261824,0.31640782,3161.2,3160.4,0.002]
[1768886262010,0.00080008,3161.0,3160.4,0.002]
[1768886262540,0.00080008,3161.0,3160.3,0.00080008]
[1768886266105,0.90935201,3161.0,3160.3,0.00080008]
[1768886266419,4.07296503,3161.0,3160.3,0.00080008]
[1768886266614,0.4072965,3160.9,3160.3,0.00080008]
[1768886266818,0.00080008,3161.0,3160.3,0.00080008]
[1768886267542,0.00080008,3161.0,3160.3,0.90887377]
[1768886268103,0.00080008,3161.0,3160.3,0.00080008]
[1768886268410,0.90855193,3160.7,3160.3,0.00080008]
[1768886268844,3.16369641,3160.9,3160.3,0.00080008]
[1768886269011,0.31644965,3160.8,3160.3,0.00080008]
[1768886270923,0.90855193,3160.8,3160.3,0.00080008]
[1768886271321,0.90855193,3160.8,3159.7,0.00080016]
[1768886271524,0.90855193,3160.3,3159.7,0.00080016]
[1768886271925,0.00080008,3160.4,3159.7,0.00080016]
[1768886272143,0.90935201,3160.4,3159.7,0.00080016]
[1768886273410,0.91816968,3160.3,3159.7,0.00080016]
[1768886274538,0.91816968,3160.1,3159.7,0.00080016]
[1768886275350,3.16435668,3160.2,3159.7,0.00080016]
[1768886275548,0.00080008,3160.4,3159.7,0.00080016]
[1768886275914,0.91896976,3160.4,3159.7,0.00080016]
[1768886276327,1.32727595,3160.4,3159.7,0.00080016]
[1768886276523,4.49146129,3160.4,3159.7,0.00080016]
[1768886276723,0.91816968,3160.3,3159.7,0.00080016]
[1768886278515,0.91816968,3160.1,3159.4,0.00080016]
[1768886278762,1.32642232,3160.0,3159.4,0.00080016]
[1768886279492,1.32642232,3160.0,3159.1,0.00280016]
[1768886279493,0.91816968,3159.9,3159.1,0.00280016]
[1768886279764,0.40825264,3160.0,3159.1,0.00280016]
[1768886279765,0.91816968,3159.7,3159.1,0.00280016]
[1768886280637,0.91816968,3159.5,3159.1,0.00280016]
[1768886280959,0.91816968,3159.4,3159.1,0.00280016]
[1768886282846,0.00080016,3159.8,3159.1,0.91377123]
[1768886285367,0.00080016,3159.8,3159.3,0.91097107]
[1768886285563,0.00080016,3159.8,3159.4,0.002]
[1768886287938,0.91896984,3159.8,3159.4,0.002]
[1768886288139,0.40836693,3159.7,3159.4,0.002]
[1768886288450,0.91896984,3159.8,3159.4,0.002]
[1768886289538,4.08373722,3159.8,3159.4,0.002]
[1768886289939,0.91896984,3159.8,3159.4,0.002]
[1768886290140,0.00080016,3159.8,3159.4,0.002]
[1768886292008,0.91816968,3159.7,3159.1,0.00280016]
[1768886294000,4.0830733,3159.7,3159.1,0.00280016]
[1768886294365,7.97284226,3159.7,3159.1,0.00280016]
[1768886294566,0.91816968,3159.6,3159.1,0.00280016]
[1768886294896,3.88976896,3159.7,3159.1,0.00280016]
[1768886295398,0.91896984,3159.8,3159.2,0.91097107]
[1768886295399,0.00080016,3159.8,3159.2,0.91097107]
[1768886297170,6.32856447,3160.3,3159.2,0.91097107]
[1768886297500,4.08242623,3160.3,3160.0,0.00080016]
[1768886297668,0.91816968,3160.2,3159.7,0.00080024]
[1768886297866,4.08254128,3160.2,3159.7,0.00080024]
[1768886298068,3.16428444,3160.3,3159.7,0.00080024]
[1768886299299,0.91896992,3160.1,3159.4,0.00080024]
[1768886299496,0.91996984,3159.5,3159.0,0.002]
[1768886300180,3.16515794,3159.4,3159.0,0.002]
[1768886300510,0.91996984,3159.5,3159.0,0.002]
[1768886300708,1.32847439,3159.5,3159.0,0.002]
[1768886300909,4.49353552,3159.5,3159.0,0.002]
[1768886301715,7.65859665,3159.5,3159.0,0.002]
[1768886302122,4.49353552,3159.5,3159.0,0.002]
[1768886302306,0.44935355,3159.4,3159.0,0.002]
[1768886303317,0.00180016,3159.5,3159.0,0.002]
[1768886304190,0.00180016,3159.5,3159.0,0.95311418]
[1768886304613,0.00080024,3159.8,3159.1,0.95111418]
[1768886304831,0.00080024,3159.8,3159.3,0.95111418]
[1768886305702,0.99589152,3159.7,3159.1,0.00080024]
[1768886306296,4.1608491,3159.6,3159.1,0.00080024]
[1768886306609,0.99589152,3159.6,3159.1,0.00080024]
[1768886307631,0.00080024,3159.8,3159.1,0.95191442]
[1768886308437,0.00080024,3159.8,3159.2,0.95111418]
[1768886308621,0.00080024,3159.8,3159.3,0.41173467]
[1768886309230,0.00080024,3159.8,3159.2,0.95111418]
[1768886310503,0.00080024,3159.8,3159.3,0.95111418]
[1768886311234,0.00180024,3159.8,3159.3,0.95111418]
[1768886312745,0.00180024,3159.8,3159.5,0.95111418]
[1768886312950,0.00080024,3160.1,3159.6,0.95111418]
[1768886313555,0.00080024,3160.1,3159.6,1.44311418]
[1768886313860,0.00080024,3160.1,3159.7,0.95111418]
[1768886314023,0.00080024,3160.1,3159.6,0.492]
[1768886314226,0.00080024,3160.1,3159.6,1.44311418]
[1768886314651,0.00080024,3160.1,3159.7,0.95111418]
[1768886314865,0.00080024,3160.1,3159.7,4.11595594]
[1768886315008,0.00080024,3160.1,3159.8,1.72839698]
[1768886315346,0.00080024,3160.1,3159.9,0.95111418]
[1768886315646,0.00080016,3160.4,3159.9,0.95111418]
[1768886316818,0.00080016,3160.4,3160.0,4.11567114]
[1768886317152,0.00080008,3161.0,3160.2,0.95111418]
[1768886317308,0.00080008,3161.0,3160.4,0.95111418]
[1768886319228,0.00080008,3161.0,3160.5,3.16405632]
[1768886319410,0.00080008,3161.0,3160.6,0.90351705]
[1768886320917,0.00080008,3161.0,3160.3,0.00080016]
[1768886320918,0.9966916,3161.0,3160.3,0.00080016]
[1768886323552,0.001,3160.7,3160.3,0.00080016]
[1768886324933,0.001,3160.7,3160.4,0.492]
[1768886325160,0.98831343,3160.7,3160.3,0.00080016]
[1768886325340,0.98831343,3160.7,3160.3,0.49280016]
[1768886325954,0.001,3160.7,3160.3,0.49280016]
[1768886326738,0.001,3160.7,3160.3,0.00080016]
[1768886328047,0.00080008,3161.0,3160.5,0.96072139]
[1768886329652,0.00080008,3161.0,3160.6,3.16395621]
[1768886329971,0.98491351,3161.4,3160.9,0.00080008]
[1768886330757,0.0008,3161.6,3160.9,0.00080008]
[1768886331056,3.29038878,3163.0,3161.2,0.00080008]
[1768886331057,0.98731343,3162.0,3161.2,0.00080008]
[1768886331559,0.98731343,3162.0,3161.2,0.96152147]
[1768886331719,0.98731343,3162.3,3161.2,4.12484831]
[1768886331923,0.98731343,3162.3,3161.3,0.41248483]
[1768886332228,0.98731343,3162.3,3161.4,0.96072139]
[1768886332446,0.98731343,3162.3,3161.5,0.492]
[1768886332753,0.98731343,3162.3,3161.3,0.41248483]
[1768886333063,0.98731343,3162.3,3161.5,0.492]
[1768886333271,0.0008,3162.4,3161.6,0.94669358]
[1768886334374,0.92603195,3162.4,3161.5,0.492]
[1768886334562,0.92603195,3162.4,3161.6,0.94669358]
[1768886334889,0.92603195,3162.4,3161.6,1.4068756]
[1768886335386,0.92603195,3162.4,3161.6,4.56979898]
[1768886335556,0.0008,3162.4,3161.6,4.56979898]
[1768886335755,0.0008,3162.4,3161.7,0.94669358]
[1768886336500,0.92603195,3162.4,3161.8,0.492]
[1768886336941,0.001,3162.1,3161.8,0.492]
[1768886337147,0.001,3162.1,3161.5,0.492]
[1768886337609,0.92523195,3162.0,3161.5,0.492]
[1768886337761,0.92523195,3162.0,3161.2,0.49280008]
[1768886338366,0.001,3162.1,3161.3,0.94669358]
[1768886338694,0.001,3162.1,3161.4,0.94669358]
[1768886338904,0.001,3162.1,3161.5,0.41099468]
[1768886339248,0.001,3162.1,3161.4,0.94669358]
[1768886339665,4.08870112,3162.1,3161.5,0.492]
[1768886340066,0.92623195,3162.1,3161.5,0.492]
[1768886340682,0.92523195,3162.0,3161.2,0.00080008]
[1768886340881,0.92603203,3161.6,3160.9,0.00080008]
[1768886341578,0.92603203,3161.6,3161.0,0.94669358]
[1768886341579,0.00080008,3161.6,3161.0,0.94669358]
[1768886341783,0.00080008,3161.6,3160.9,0.94749366]